[Event "48th Rilton Cup 2018"]
[Site "Stockholm"]
[Date "2018.12.30"]
[Round "4"]
[White "Gajewski, Grzegorz"]
[Black "Zumsande, Martin"]
[Result "1/2-1/2"]
[ECO "A06"]
[WhiteElo "2598"]
[BlackElo "2490"]
[Annotator "ChessBase"]
[PlyCount "102"]
[EventDate "2018.12.27"]
[EventType "swiss"]
[EventCountry "SWE"]
[SourceTitle "playchess.com"]
[Source "ChessBase"]
[SourceQuality "1"]
[TimeControl "40/5400+30:1800+30"]

1. Nf3 {[%emt 0:00:12]} d5 {[%emt 0:00:00]} 2. g3 {[%emt 0:00:04]} Nf6 {[%emt 0:00:00]} 3. Bg2 {[%emt 0:00:05]} e6 {[%emt 0:00:05]} 4. O-O {[%emt 0:00:06]} Be7 {[%emt 0:01:25]} 5. c4 {[%emt 0:00:53]} O-O {[%emt 0:00:08]} 6. d4 {[%emt 0:01:16]} dxc4 {[%emt 0:00:09]} 7. Qc2 {[%emt 0:00:06]} b6 {[%emt 0:00:16]} 8. Bg5 {[%emt 0:01:22]} Nd5 {[%emt 0:01:25]} 9. Bxe7 {[%emt 0:00:42]} Qxe7 {[%emt 0:00:05]} 10. e4 {[%emt 0:03:05]} Nf6 {[%emt 0:17:13]} 11. Nc3 {[%emt 0:08:29]} Nc6 {[%emt 0:06:46]} 12. a3 {[%emt 0:09:26]} Bb7 {[%emt 0:05:14]} 13. Rad1 {[%emt 0:06:24]} Na5 {[%emt 0:08:53]} 14. Rfe1 {[%emt 0:06:46]} Rad8 {[%emt 0:05:15]} 15. e5 {[%emt 0:02:53]} Nd5 {[%emt 0:01:07]} 16. Ne4 {[%emt 0:00:07]} h6 {[%emt 0:00:28]} 17. h4 {[%emt 0:02:37]} Rd7 {[%emt 0:22:17]} 18. g4 {[%emt 0:22:54]} f5 {[%emt 0:04:29]} 19. exf6 {[%emt 0:01:54]} gxf6 {[%emt 0:00:02]} 20. Qc1 {[%emt 0:02:47]} Qg7 {[%emt 0:02:30]} 21. Ng3 {[%emt 0:00:44]} b5 {[%emt 0:03:10]} 22. Rxe6 {[%emt 0:03:12]} Nb3 {[%emt 0:00:27]} 23. Qc2 {[%emt 0:01:05]} Qxg4 {[%emt 0:02:54]} 24. Re4 {[%emt 0:04:28]} Qg6 {[%emt 0:04:57]} 25. h5 {[%emt 0:02:41]} Qh7 {[%emt 0:00:01]} 26. Nh4 {[%emt 0:09:31]} Nf4 {[%emt 0:01:32]} 27. Ngf5 {[%emt 0:02:12]} Bxe4 {[%emt 0:02:31]} 28. Qxe4 {[%emt 0:03:03]} Nxd4 {[%emt 0:05:06]} 29. Rxd4 {[%emt 0:00:12]} Rxd4 {[%emt 0:00:14]} 30. Nxd4 {[%emt 0:03:56]} Qxe4 {[%emt 0:00:48]} 31. Bxe4 {[%emt 0:00:01]} Rd8 {[%emt 0:02:47]} 32. Nhf5 {[%emt 0:00:30]} Kf8 {[%emt 0:01:39]} 33. Bc6 {[%emt 0:01:09]} a6 {[%emt 0:00:40]} 34. f3 {[%emt 0:00:47]} Rb8 {[%emt 0:00:30]} 35. Kf2 {[%emt 0:00:39]} b4 {[%emt 0:01:00]} 36. axb4 {[%emt 0:00:02]} Rxb4 {[%emt 0:00:19]} 37. Ke3 {[%emt 0:00:02]} Nxh5 {[%emt 0:01:11]} 38. Ne6+ {[%emt 0:00:03]} Kf7 {[%emt 0:00:26]} 39. Bd5 {[%emt 0:01:02]} c6 {[%emt 0:00:32]} 40. Nd8+ {[%emt 0:00:21]} Kg6 {[%emt 0:00:00]} 41. Ne7+ {[%emt 0:08:14]} Kg5 42. Ne6+ {[%emt 0:01:24]} Kh4 {[%emt 0:06:52]} 43. Nf5+ {[%emt 0:00:30]} Kh3 {[%emt 0:00:09]} 44. Bxc6 {[%emt 0:00:00]} Rxb2 {[%emt 0:03:07]} 45. Kd4 {[%emt 0:09:12]} a5 46. Kc3 {[%emt 0:00:04]} Rb3+ {[%emt 0:07:25]} 47. Kxc4 {[%emt 0:00:04]} Rb4+ {[%emt 0:00:04]} 48. Kc3 Nf4 {[%emt 0:02:09]} 49. Nxf4+ {[%emt 0:00:48]} Rxf4 50. Nxh6 {[%emt 0:00:00]} Kg3 {[%emt 0:01:02]} 51. Ng4 Rxg4 1/2-1/2

[Event "48th Rilton Cup 2018"]
[Site "Stockholm"]
[Date "2018.12.30"]
[Round "4"]
[White "Zou, Chen"]
[Black "Urkedal, Frode Olav Olsen"]
[Result "0-1"]
[ECO "C88"]
[WhiteElo "2384"]
[BlackElo "2537"]
[Annotator "ChessBase"]
[PlyCount "84"]
[EventDate "2018.12.27"]
[EventType "swiss"]
[EventCountry "SWE"]
[SourceTitle "playchess.com"]
[Source "ChessBase"]
[SourceQuality "1"]
[TimeControl "40/5400+30:1800+30"]

1. e4 {[%emt 0:00:00]} e5 {[%emt 0:00:00]} 2. Nf3 {[%emt 0:00:00]} Nc6 {[%emt 0:00:00]} 3. Bb5 {[%emt 0:00:00]} a6 {[%emt 0:00:00]} 4. Ba4 {[%emt 0:00:00]} Nf6 {[%emt 0:00:00]} 5. O-O {[%emt 0:00:00]} Be7 {[%emt 0:00:00]} 6. Re1 {[%emt 0:00:00]} b5 {[%emt 0:00:00]} 7. Bb3 {[%emt 0:00:01]} O-O {[%emt 0:00:00]} 8. a4 {[%emt 0:00:29]} b4 {[%emt 0:00:20]} 9. a5 {[%emt 0:01:25]} d6 {[%emt 0:01:10]} 10. d3 {[%emt 0:00:07]} Rb8 {[%emt 0:00:34]} 11. Nbd2 {[%emt 0:01:08]} Be6 {[%emt 0:00:36]} 12. Bxe6 {[%emt 0:01:43]} fxe6 {[%emt 0:00:05]} 13. Nb3 {[%emt 0:00:06]} Qe8 {[%emt 0:02:20]} 14. d4 {[%emt 0:07:51]} exd4 {[%emt 0:01:32]} 15. Nbxd4 {[%emt 0:00:12]} Nxd4 {[%emt 0:01:20]} 16. Nxd4 {[%emt 0:00:19]} Qd7 {[%emt 0:01:04]} 17. Qe2 {[%emt 0:05:30]} c5 {[%emt 0:06:10]} 18. Nf3 {[%emt 0:05:11]} Ne8 {[%emt 0:00:19]} 19. Nd2 {[%emt 0:23:21]} Nc7 {[%emt 0:08:39]} 20. Nc4 {[%emt 0:03:52]} d5 {[%emt 0:00:31]} 21. Ne5 {[%emt 0:13:29]} Qd6 {[%emt 0:03:04]} 22. Qh5 {[%emt 0:01:58]} dxe4 {[%emt 0:12:59]} 23. Rxe4 {[%emt 0:02:44]} Qd5 {[%emt 0:03:54]} 24. Qg4 {[%emt 0:14:47]} Bf6 {[%emt 0:04:51]} 25. Bh6 {[%emt 0:08:36]} Nb5 {[%emt 0:03:04]} 26. Nc4 {[%emt 0:00:37]} Nd4 {[%emt 0:05:23]} 27. Ne3 {[%emt 0:00:19]} Qc6 {[%emt 0:06:21]} 28. Nc4 {[%emt 0:01:44]} Kh8 {[%emt 0:00:55]} 29. Be3 {[%emt 0:01:01]} Nxc2 {[%emt 0:02:51]} 30. Rxe6 {[%emt 0:00:31]} Qd5 {[%emt 0:01:10]} 31. Rc1 {[%emt 0:02:11]} Nxe3 {[%emt 0:04:00]} 32. Rxe3 {[%emt 0:04:26]} Bd4 {[%emt 0:05:18]} 33. Rf3 {[%emt 0:01:58]} Rbe8 {[%emt 0:01:11]} 34. b3 {[%emt 0:00:37]} h5 {[%emt 0:03:23]} 35. Qg6 {[%emt 0:00:42]} Rd8 {[%emt 0:03:47]} 36. Rf1 {[%emt 0:00:33]} Rxf3 {[%emt 0:00:47]} 37. gxf3 {[%emt 0:00:19]} Qxf3 {[%emt 0:00:48]} 38. Nd2 {[%emt 0:00:28]} Qe2 {[%emt 0:01:50]} 39. Ne4 {[%emt 0:00:38]} Rf8 {[%emt 0:02:29]} 40. Qe6 {[%emt 0:00:32]} Bxf2+ {[%emt 0:00:37]} 41. Rxf2 {[%emt 0:30:29]} Qe1+ {[%emt 0:30:05]} 42. Kg2 {[%emt 0:00:21]} Rxf2+ {[%emt 0:00:05]} 0-1

[Event "48th Rilton Cup 2018"]
[Site "Stockholm"]
[Date "2018.12.30"]
[Round "4"]
[White "Roy, Prantik"]
[Black "Kulaots, Kaido"]
[Result "0-1"]
[ECO "A45"]
[WhiteElo "2382"]
[BlackElo "2555"]
[Annotator "ChessBase"]
[PlyCount "64"]
[EventDate "2018.12.27"]
[EventType "swiss"]
[EventCountry "SWE"]
[SourceTitle "playchess.com"]
[Source "ChessBase"]
[SourceQuality "1"]
[TimeControl "40/5400+30:1800+30"]

1. d4 {[%emt 0:00:00]} Nf6 {[%emt 0:00:00]} 2. Bg5 {[%emt 0:00:00]} d5 {[%emt 0:00:07]} 3. Bxf6 {[%emt 0:00:41]} exf6 {[%emt 0:00:15]} 4. e3 {[%emt 0:00:07]} Bd6 {[%emt 0:00:33]} 5. Bd3 {[%emt 0:00:45]} c6 {[%emt 0:05:34]} 6. Nd2 {[%emt 0:02:08]} f5 {[%emt 0:03:15]} 7. Qf3 {[%emt 0:04:08]} g6 {[%emt 0:01:06]} 8. h3 {[%emt 0:00:43]} h5 {[%emt 0:11:44]} 9. Ne2 {[%emt 0:03:10]} h4 {[%emt 0:10:02]} 10. c4 {[%emt 0:06:36]} dxc4 {[%emt 0:02:44]} 11. Nxc4 {[%emt 0:01:11]} Bc7 {[%emt 0:03:17]} 12. Nc3 {[%emt 0:06:23]} Be6 {[%emt 0:09:35]} 13. O-O-O {[%emt 0:03:00]} Nd7 {[%emt 0:03:42]} 14. Kb1 {[%emt 0:07:14]} O-O {[%emt 0:02:18]} 15. Nd2 {[%emt 0:14:11]} Ba5 {[%emt 0:12:37]} 16. Bc4 {[%emt 0:12:42]} Bxc4 {[%emt 0:00:46]} 17. Nxc4 {[%emt 0:00:05]} Bxc3 {[%emt 0:00:08]} 18. bxc3 {[%emt 0:00:03]} Nb6 {[%emt 0:02:06]} 19. Nxb6 {[%emt 0:01:47]} axb6 {[%emt 0:00:21]} 20. Rd2 {[%emt 0:03:52]} b5 {[%emt 0:01:37]} 21. g4 {[%emt 0:04:04]} hxg3 {[%emt 0:01:32]} 22. fxg3 {[%emt 0:00:11]} Ra3 {[%emt 0:07:55]} 23. g4 {[%emt 0:00:53]} f4 {[%emt 0:01:05]} 24. exf4 {[%emt 0:02:54]} b4 {[%emt 0:00:58]} 25. Rc1 {[%emt 0:04:41]} Qa5 {[%emt 0:02:08]} 26. Rb2 {[%emt 0:07:24]} bxc3 {[%emt 0:01:29]} 27. Rb3 {[%emt 0:00:05]} Rxa2 {[%emt 0:06:38]} 28. Qxc3 {[%emt 0:00:13]} Qa6 {[%emt 0:00:41]} 29. Qd3 {[%emt 0:05:26]} Qa4 {[%emt 0:03:17]} 30. f5 {[%emt 0:01:56]} Ra8 {[%emt 0:01:17]} 31. fxg6 {[%emt 0:00:53]} Rf2 {[%emt 0:01:03]} 32. gxf7+ {[%emt 0:01:11]} Kf8 {[%emt 0:00:15]} 0-1

[Event "48th Rilton Cup 2018"]
[Site "Stockholm"]
[Date "2018.12.30"]
[Round "4"]
[White "Schmidek, Emil"]
[Black "Hillarp Persson, Tiger"]
[Result "0-1"]
[ECO "B12"]
[WhiteElo "2382"]
[BlackElo "2546"]
[Annotator "ChessBase"]
[PlyCount "102"]
[EventDate "2018.12.27"]
[EventType "swiss"]
[EventCountry "SWE"]
[SourceTitle "playchess.com"]
[Source "ChessBase"]
[SourceQuality "1"]
[TimeControl "40/5400+30:1800+30"]

1. e4 {[%emt 0:00:00]} c6 {[%emt 0:00:00]} 2. d4 {[%emt 0:00:00]} d5 {[%emt 0:00:00]} 3. e5 {[%emt 0:00:00]} Bf5 {[%emt 0:00:00]} 4. Nf3 {[%emt 0:00:00]} e6 {[%emt 0:00:00]} 5. Be2 {[%emt 0:00:00]} c5 {[%emt 0:00:09]} 6. Be3 {[%emt 0:00:00]} Qb6 {[%emt 0:00:07]} 7. Nc3 {[%emt 0:00:08]} Qxb2 {[%emt 0:00:23]} 8. Qb1 {[%emt 0:00:12]} Qxb1+ {[%emt 0:00:32]} 9. Rxb1 {[%emt 0:00:05]} c4 {[%emt 0:00:09]} 10. Rxb7 {[%emt 0:00:37]} Nc6 {[%emt 0:00:10]} 11. Nb5 {[%emt 0:01:43]} Nd8 {[%emt 0:03:07]} 12. Rc7 {[%emt 0:00:13]} Rb8 {[%emt 0:02:40]} 13. Nd6+ {[%emt 0:00:07]} Bxd6 {[%emt 0:00:09]} 14. exd6 {[%emt 0:00:03]} Rb1+ {[%emt 0:02:35]} 15. Bd1 {[%emt 0:00:05]} Bxc2 {[%emt 0:00:46]} 16. Kd2 {[%emt 0:00:08]} Bxd1 {[%emt 0:00:41]} 17. Rxd1 {[%emt 0:00:08]} Rb6 {[%emt 0:02:15]} 18. Bf4 {[%emt 0:20:49]} Nf6 {[%emt 0:01:42]} 19. Re7+ {[%emt 0:04:45]} Kf8 {[%emt 0:00:07]} 20. Rxa7 {[%emt 0:00:43]} Ne4+ {[%emt 0:02:40]} 21. Kc2 {[%emt 0:02:43]} f6 {[%emt 0:05:42]} 22. Rb1 {[%emt 0:35:53]} Rxb1 {[%emt 0:01:49]} 23. Kxb1 {[%emt 0:00:02]} g5 {[%emt 0:06:39]} 24. Bc1 {[%emt 0:04:05]} Nf7 {[%emt 0:13:32]} 25. d7 {[%emt 0:04:58]} Nc3+ {[%emt 0:42:42]} 26. Kc2 {[%emt 0:00:41]} Nb5 {[%emt 0:00:20]} 27. Rb7 {[%emt 0:02:15]} Nbd6 {[%emt 0:00:07]} 28. Ba3 {[%emt 0:01:18]} Ke7 {[%emt 0:00:08]} 29. d8=Q+ {[%emt 0:03:36]} Kxd8 {[%emt 0:00:13]} 30. Ra7 {[%emt 0:00:29]} g4 {[%emt 0:02:09]} 31. Ng1 {[%emt 0:02:33]} Nb5 {[%emt 0:01:14]} 32. Be7+ {[%emt 0:02:07]} Ke8 {[%emt 0:00:11]} 33. Rb7 {[%emt 0:00:30]} Nxd4+ {[%emt 0:00:12]} 34. Kc3 {[%emt 0:00:23]} Nc6 {[%emt 0:00:12]} 35. Bxf6 {[%emt 0:00:15]} Nd6 {[%emt 0:04:02]} 36. Rb6 {[%emt 0:05:34]} Ne4+ {[%emt 0:00:27]} 37. Kc2 {[%emt 0:00:20]} Rf8 {[%emt 0:02:48]} 38. f3 {[%emt 0:02:24]} Rxf6 {[%emt 0:00:19]} 39. Rxc6 {[%emt 0:03:21]} Ng5 {[%emt 0:00:32]} 40. Ra6 {[%emt 0:04:31]} Kd7 {[%emt 0:01:09]} 41. Ne2 {[%emt 0:06:09]} gxf3 {[%emt 0:01:42]} 42. gxf3 {[%emt 0:00:04]} Rxf3 {[%emt 0:01:33]} 43. Nd4 {[%emt 0:01:45]} Rh3 {[%emt 0:05:40]} 44. Nb5 {[%emt 0:00:29]} Ne4 {[%emt 0:00:39]} 45. Ra7+ {[%emt 0:01:07]} Kc6 {[%emt 0:00:30]} 46. Nd4+ {[%emt 0:00:48]} Kb6 {[%emt 0:00:08]} 47. Re7 {[%emt 0:00:29]} Rxh2+ {[%emt 0:00:05]} 48. Kc1 {[%emt 0:00:19]} Nc5 {[%emt 0:00:16]} 49. Nxe6 {[%emt 0:02:31]} Nd3+ {[%emt 0:09:17]} 50. Kb1 {[%emt 0:00:12]} c3 {[%emt 0:00:11]} 51. Nd4 {[%emt 0:00:09]} c2+ {[%emt 0:00:30]} 0-1

[Event "48th Rilton Cup 2018"]
[Site "Stockholm"]
[Date "2018.12.31"]
[Round "5"]
[White "Liang, Awonder"]
[Black "Keinanen, Toivo"]
[Result "1-0"]
[ECO "C11"]
[WhiteElo "2589"]
[BlackElo "2404"]
[Annotator "RC"]
[PlyCount "129"]
[EventDate "2018.12.27"]
[EventType "swiss"]
[EventCountry "SWE"]
[SourceTitle "playchess.com"]
[Source "ChessBase"]
[SourceQuality "1"]
[TimeControl "40/5400+30:1800+30"]

1. e4 e6 2. d4 {[%emt 0:00:00]} d5 {[%emt 0:02:46]} 3. Nc3 {[%emt 0:00:00]} Nf6 {[%emt 0:00:05]} 4. e5 {[%emt 0:00:00]} Nfd7 {[%emt 0:00:07]} 5. f4 {[%emt 0:00:00]} c5 {[%emt 0:01:06]} 6. Nf3 {[%emt 0:00:02]} Nc6 {[%emt 0:00:03]} 7. Be3 {[%emt 0:00:00]} a6 {[%emt 0:02:17]} 8. Qd2 {[%emt 0:00:00]} b5 {[%emt 0:02:15]} 9. Nd1 cxd4 {[%emt 0:10:03]} 10. Nxd4 {[%emt 0:00:29]} Nxd4 {[%emt 0:01:31]} 11. Bxd4 {[%emt 0:00:09]} Bc5 {[%emt 0:02:58]} 12. Nf2 {[%emt 0:11:50]} Bxd4 {[%emt 0:12:11]} 13. Qxd4 {[%emt 0:00:01]} f6 {[%emt 0:03:12]} 14. Bd3 {[%emt 0:07:24]} Qb6 {[%emt 0:29:07]} 15. Qxb6 {[%emt 0:05:31]} Nxb6 {[%emt 0:00:01]} 16. O-O-O {[%emt 0:00:58]} fxe5 {[%emt 0:05:22]} 17. fxe5 {[%emt 0:00:02]} Ke7 {[%emt 0:01:19]} 18. Nh3 {[%emt 0:05:42]} Bb7 {[%emt 0:01:17]} 19. Ng5 {[%emt 0:03:38]} Raf8 {[%emt 0:02:56]} 20. Nxh7 {[%emt 0:27:46]} Rf2 {[%emt 0:05:46]} 21. Rdf1 {[%emt 0:00:18]} Rxf1+ {[%emt 0:03:31]} 22. Rxf1 {[%emt 0:00:02]} Nd7 {[%emt 0:01:16]} 23. Re1 {[%emt 0:02:40]} g6 {[%emt 0:02:41]} 24. Bxg6 {[%emt 0:01:03]} Rg8 {[%emt 0:00:09]} 25. Bd3 {[%emt 0:00:29]} Rxg2 {[%emt 0:00:16]} 26. h4 {[%emt 0:00:36]} Rh2 {[%emt 0:03:29]} 27. Rg1 {[%emt 0:03:30]} Rxh4 {[%emt 0:01:35]} 28. Rg7+ {[%emt 0:01:03]} Kd8 {[%emt 0:00:31]} 29. Ng5 {[%emt 0:04:14]} Nc5 {[%emt 0:01:59]} 30. Nxe6+ {[%emt 0:03:53]} Nxe6 {[%emt 0:00:01]} 31. Rxb7 {[%emt 0:00:08]} Rh5 {[%emt 0:01:14]} 32. Rb6 {[%emt 0:01:19]} Nc7 {[%emt 0:02:20]} 33. e6 {[%emt 0:00:23]} Re5 {[%emt 0:00:55]} 34. Rd6+ {[%emt 0:11:02]} Kc8 {[%emt 0:00:00]} 35. Bh7 {[%emt 0:00:11]} Nxe6 {[%emt 0:00:42]} 36. Rxa6 {[%emt 0:00:02]} Kb7 {[%emt 0:00:28]} 37. Ra3 {[%emt 0:00:02]} Rh5 {[%emt 0:01:59]} 38. Bd3 {[%emt 0:00:39]} Kb6 {[%emt 0:00:49]} 39. Ra8 {[%emt 0:05:57]} Nc7 {[%emt 0:00:38]} 40. Rb8+ {[%emt 0:00:03]} Kc5 {[%emt 0:00:28]} 41. b3 {[%emt 0:30:39]} Rh4 {[%emt 0:03:19]} 42. a3 {[%emt 0:00:00]} Rf4 {[%emt 0:01:42]} 43. Kb2 {[%emt 0:00:00]} Rh4 {[%emt 0:00:31]} 44. Rg8 {[%emt 0:00:00]} Kc6 {[%emt 0:08:38]} 45. Rg6+ {[%emt 0:00:00]} Kb7 {[%emt 0:00:02]} 46. Rd6 {[%emt 0:00:00]} Rf4 {[%emt 0:00:53]} 47. Bh7 {[%emt 0:00:00]} Rg4 {[%emt 0:01:45]} 48. Bf5 {[%emt 0:00:00]} Rd4 {[%emt 0:01:13]} 49. Bd7 {[%emt 0:00:00]} Rd1 {[%emt 0:01:10]} 50. Bc6+ {[%emt 0:00:00]} Ka7 {[%emt 0:01:18]} 51. Kc3 {[%emt 0:00:00]} Rc1 {[%emt 0:06:43]} 52. Rd7 {[%emt 0:00:00]} Kb6 {[%emt 0:00:42]} 53. Bxd5 {[%emt 0:00:00]} Rd1 {[%emt 0:01:00]} 54. Be6 {[%emt 0:00:00]} Re1 {[%emt 0:00:43]} 55. Bf5 {[%emt 0:00:00]} Kc6 {[%emt 0:00:31]} 56. Rh7 {[%emt 0:00:00]} Nd5+ {[%emt 0:00:26]} 57. Kd2 {[%emt 0:00:00]} Ra1 {[%emt 0:01:42]} 58. Be4 {[%emt 0:00:00]} Kd6 {[%emt 0:00:06]} 59. Bxd5 {[%emt 0:00:00]} Kxd5 {[%emt 0:00:07]} 60. Kc3 {[%emt 0:00:00]} Rxa3 {[%emt 0:01:14]} 61. Kb4 {[%emt 0:00:00]} Ra2 {[%emt 0:00:36]} 62. Rc7 {[%emt 0:00:00]} Kd6 {[%emt 0:00:27]} 63. Rc8 {[%emt 0:00:00]} Kd7 {[%emt 0:00:07]} 64. Rc5 {[%emt 0:00:00]} Kd6 {[%emt 0:00:07]} 65. Kxb5 {[%emt 0:00:00] Kd5} 1-0

[Event "48th Rilton Cup 2018"]
[Site "Stockholm"]
[Date "2018.12.31"]
[Round "5"]
[White "Volkov, Sergey"]
[Black "Lalith Babu M R"]
[Result "1/2-1/2"]
[ECO "D35"]
[WhiteElo "2583"]
[BlackElo "2529"]
[Annotator "ChessBase"]
[PlyCount "75"]
[EventDate "2018.12.27"]
[EventType "swiss"]
[EventCountry "SWE"]
[SourceTitle "playchess.com"]
[Source "ChessBase"]
[SourceQuality "1"]
[TimeControl "40/5400+30:1800+30"]

1. d4 {[%emt 0:00:00]} Nf6 {[%emt 0:00:00]} 2. c4 {[%emt 0:00:00]} e6 {[%emt 0:00:00]} 3. Nf3 {[%emt 0:00:00]} d5 {[%emt 0:00:00]} 4. Nc3 {[%emt 0:00:00]} Nbd7 {[%emt 0:00:02]} 5. cxd5 {[%emt 0:00:59]} exd5 {[%emt 0:00:11]} 6. Bf4 {[%emt 0:01:41]} c6 {[%emt 0:01:08]} 7. Qc2 {[%emt 0:01:33]} Nh5 {[%emt 0:01:16]} 8. Bd2 {[%emt 0:01:34]} Nhf6 {[%emt 0:03:16]} 9. Bg5 {[%emt 0:00:38]} Be7 {[%emt 0:00:20]} 10. e3 {[%emt 0:00:05]} O-O {[%emt 0:01:34]} 11. Bd3 {[%emt 0:00:27]} Re8 {[%emt 0:00:16]} 12. O-O {[%emt 0:00:33]} h6 {[%emt 0:00:10]} 13. Bf4 {[%emt 0:01:45]} Nf8 {[%emt 0:00:05]} 14. h3 {[%emt 0:01:55]} Bd6 {[%emt 0:18:32]} 15. Bxd6 {[%emt 0:03:37]} Qxd6 {[%emt 0:00:06]} 16. a3 {[%emt 0:00:10]} a5 {[%emt 0:11:02]} 17. Rab1 {[%emt 0:04:36]} Be6 {[%emt 0:01:35]} 18. Rfc1 {[%emt 0:01:29]} N8d7 {[%emt 0:00:59]} 19. Nd2 {[%emt 0:00:56]} Rec8 {[%emt 0:14:30]} 20. f4 {[%emt 0:08:28]} Nf8 {[%emt 0:05:26]} 21. Na4 {[%emt 0:01:58]} Qd8 {[%emt 0:01:01]} 22. b4 {[%emt 0:04:45]} axb4 {[%emt 0:00:56]} 23. axb4 {[%emt 0:00:12]} Ne8 {[%emt 0:00:25]} 24. Nc5 {[%emt 0:08:13]} b6 {[%emt 0:02:20]} 25. Nxe6 {[%emt 0:04:34]} Nxe6 {[%emt 0:00:19]} 26. f5 {[%emt 0:01:36]} Ng5 {[%emt 0:08:40]} 27. h4 {[%emt 0:00:32]} Nh7 {[%emt 0:00:06]} 28. Nf3 {[%emt 0:00:09]} Nhf6 {[%emt 0:02:35]} 29. Ne5 {[%emt 0:00:43]} Qe7 {[%emt 0:01:03]} 30. Qf2 {[%emt 0:11:38]} c5 {[%emt 0:00:31]} 31. b5 {[%emt 0:00:33]} c4 {[%emt 0:01:03]} 32. Bc2 {[%emt 0:00:37]} Nd6 {[%emt 0:00:10]} 33. Qf4 {[%emt 0:00:58]} Nfe4 {[%emt 0:05:01]} 34. Bxe4 {[%emt 0:01:26]} Nxe4 {[%emt 0:00:17]} 35. Nc6 {[%emt 0:00:33]} Qf6 {[%emt 0:09:17]} 36. Nb4 {[%emt 0:06:19]} Qd8 {[%emt 0:00:51]} 37. Nc6 {[%emt 0:00:17]} Qf6 {[%emt 0:01:58]} 38. Nb4 {[%emt 0:00:06]} 1/2-1/2

[Event "48th Rilton Cup 2018"]
[Site "Stockholm"]
[Date "2018.12.31"]
[Round "5"]
[White "Hauge, Lars Oskar"]
[Black "Santos Latasa, Jaime"]
[Result "*"]
[ECO "C11"]
[WhiteElo "2466"]
[BlackElo "2584"]
[Annotator "RC"]
[PlyCount "100"]
[EventDate "2018.12.27"]
[EventType "swiss"]
[EventCountry "SWE"]
[SourceTitle "playchess.com"]
[Source "ChessBase"]
[SourceQuality "1"]
[TimeControl "40/5400+30:1800+30"]

1. d4 {[%emt 0:01:45]} Nf6 {[%emt 0:00:00]} 2. Nc3 {[%emt 0:01:30]} e6 {[%emt 0:00:00]} 3. e4 {[%emt 0:03:08]} d5 {[%emt 0:01:21]} 4. e5 {[%emt 0:00:06]} Nfd7 {[%emt 0:00:04]} 5. f4 {[%emt 0:00:09]} c5 {[%emt 0:00:04]} 6. Nf3 {[%emt 0:00:03]} Nc6 {[%emt 0:00:39]} 7. Ne2 {[%emt 0:00:07]} Be7 {[%emt 0:00:08]} 8. g3 {[%emt 0:11:13]} O-O {[%emt 0:00:22]} 9. Bg2 {[%emt 0:00:09]} b5 {[%emt 0:00:40]} 10. O-O {[%emt 0:02:23]} a5 {[%emt 0:00:36]} 11. Be3 {[%emt 0:06:06]} b4 {[%emt 0:00:44]} 12. dxc5 {[%emt 0:05:54]} Ba6 {[%emt 0:01:31]} 13. Re1 {[%emt 0:07:02]} Bxc5 {[%emt 0:05:56]} 14. Ned4 {[%emt 0:00:58]} Qc7 {[%emt 0:00:54]} 15. Kh1 {[%emt 0:14:29]} Nxd4 {[%emt 0:01:43]} 16. Nxd4 {[%emt 0:04:11]} Rac8 {[%emt 0:00:44]} 17. Rc1 {[%emt 0:00:40]} Rfe8 {[%emt 0:05:08]} 18. Bg1 {[%emt 0:01:14]} g6 {[%emt 0:02:41]} 19. Qd2 {[%emt 0:04:49]} Bf8 {[%emt 0:03:53]} 20. Nf3 {[%emt 0:03:23]} Nc5 {[%emt 0:00:43]} 21. Bd4 {[%emt 0:00:07]} Ne4 {[%emt 0:00:59]} 22. Qe3 {[%emt 0:00:07]} Bc5 {[%emt 0:00:29]} 23. Bxc5 {[%emt 0:00:50]} Qxc5 {[%emt 0:00:42]} 24. Nd4 {[%emt 0:00:32]} a4 {[%emt 0:00:08]} 25. Kg1 a3 {[%emt 0:00:30]} 26. bxa3 bxa3 {[%emt 0:00:30]} 27. Bxe4 dxe4 {[%emt 0:00:30]} 28. Nb3 Qe7 {[%emt 0:00:30]} 29. Nd2 Bb7 {[%emt 0:00:30]} 30. Nxe4 Bxe4 {[%emt 0:00:30]} 31. Qxe4 Rc3 {[%emt 0:00:30]} 32. Kg2 Rec8 {[%emt 0:00:30]} 33. Re2 Qc7 {[%emt 0:00:30]} 34. Kh3 Qb6 {[%emt 0:00:30]} 35. Rd1 Qb2 {[%emt 0:00:30]} 36. Kg4 Qb5 {[%emt 0:00:30]} 37. Kh3 Kg7 {[%emt 0:00:30]} 38. Red2 Qb2 {[%emt 0:00:30]} 39. Qd4 Rxc2 {[%emt 0:00:30]} 40. Qxb2 axb2 {[%emt 0:00:30]} 41. Rxc2 Rxc2 {[%emt 0:30:30]} 42. Rb1 Kf8 {[%emt 0:00:30]} 43. Kg4 Rxh2 {[%emt 0:00:30]} 44. Kf3 Ke7 {[%emt 0:00:30]} 45. Ke3 Kd7 {[%emt 0:00:30]} 46. Kd4 Rg2 {[%emt 0:00:30]} 47. Kc3 Rxg3+ {[%emt 0:00:30]} 48. Kxb2 Rf3 {[%emt 0:00:30]} 49. Rd1+ Kc6 {[%emt 0:00:30]} 50. Rd4 Kc5 {[%emt 0:00:30]} *

[Event "48th Rilton Cup 2018"]
[Site "Stockholm"]
[Date "2019.01.02"]
[Round "6"]
[White "Santos Latasa, Jaime"]
[Black "Urkedal, Frode Olav Olsen"]
[Result "1/2-1/2"]
[ECO "E35"]
[WhiteElo "2584"]
[BlackElo "2537"]
[Annotator "ChessBase"]
[PlyCount "88"]
[EventDate "2018.12.27"]
[EventType "swiss"]
[EventCountry "SWE"]
[SourceTitle "playchess.com"]
[Source "ChessBase"]
[SourceQuality "1"]
[TimeControl "40/5400+30:1800+30"]

1. d4 {[%emt 0:00:00]} Nf6 {[%emt 0:00:00]} 2. c4 {[%emt 0:00:00]} e6 {[%emt 0:00:00]} 3. Nc3 {[%emt 0:00:00]} Bb4 {[%emt 0:00:00]} 4. Qc2 {[%emt 0:00:00]} d5 {[%emt 0:00:00]} 5. cxd5 {[%emt 0:00:22]} exd5 {[%emt 0:00:00]} 6. Bg5 {[%emt 0:00:06]} h6 {[%emt 0:00:00]} 7. Bxf6 {[%emt 0:00:18]} Qxf6 {[%emt 0:00:02]} 8. a3 {[%emt 0:00:04]} Bxc3+ {[%emt 0:00:21]} 9. Qxc3 {[%emt 0:00:24]} O-O {[%emt 0:00:33]} 10. e3 {[%emt 0:00:07]} c6 {[%emt 0:01:17]} 11. Nf3 {[%emt 0:01:11]} Nd7 {[%emt 0:04:16]} 12. Be2 {[%emt 0:01:26]} Qe7 {[%emt 0:02:39]} 13. O-O {[%emt 0:00:32]} Nf6 {[%emt 0:00:03]} 14. Nd2 {[%emt 0:03:03]} Bf5 {[%emt 0:02:31]} 15. b4 {[%emt 0:00:47]} Rfc8 {[%emt 0:02:43]} 16. Rfc1 {[%emt 0:01:24]} Ne8 {[%emt 0:03:38]} 17. a4 {[%emt 0:03:40]} a6 {[%emt 0:04:18]} 18. Qb2 {[%emt 0:03:58]} Nd6 {[%emt 0:02:57]} 19. Ra3 {[%emt 0:00:56]} g6 {[%emt 0:12:46]} 20. h3 {[%emt 0:01:28]} h5 {[%emt 0:00:31]} 21. Rac3 {[%emt 0:05:41]} Bd7 {[%emt 0:00:44]} 22. Bd3 {[%emt 0:02:07]} Kg7 {[%emt 0:02:54]} 23. Nb3 {[%emt 0:04:54]} g5 {[%emt 0:16:38]} 24. Nc5 {[%emt 0:02:16]} Bf5 {[%emt 0:10:32]} 25. Bxf5 {[%emt 0:02:35]} Nxf5 {[%emt 0:03:21]} 26. b5 {[%emt 0:03:55]} axb5 {[%emt 0:00:07]} 27. axb5 {[%emt 0:00:05]} g4 {[%emt 0:00:08]} 28. bxc6 {[%emt 0:00:19]} bxc6 {[%emt 0:00:08]} 29. Qb7 {[%emt 0:00:25]} Qxb7 {[%emt 0:03:15]} 30. Nxb7 {[%emt 0:00:17]} g3 {[%emt 0:02:24]} 31. R3c2 {[%emt 0:07:02]} Ra3 {[%emt 0:05:56]} 32. Re1 {[%emt 0:01:12]} h4 {[%emt 0:00:51]} 33. Kf1 {[%emt 0:00:55]} Re8 {[%emt 0:01:33]} 34. Rce2 {[%emt 0:00:42]} Re6 {[%emt 0:06:52]} 35. Nc5 {[%emt 0:00:56]} Rf6 {[%emt 0:01:10]} 36. Nd7 {[%emt 0:04:51]} Nxe3+ {[%emt 0:03:27]} 37. Rxe3 {[%emt 0:00:05]} Rxf2+ {[%emt 0:00:05]} 38. Kg1 {[%emt 0:00:05]} Raa2 {[%emt 0:00:30]} 39. Ne5 {[%emt 0:00:26]} Rxg2+ {[%emt 0:01:59]} 40. Kh1 {[%emt 0:00:21]} Rh2+ {[%emt 0:01:10]} 41. Kg1 {[%emt 0:30:19]} Rag2+ {[%emt 0:33:54]} 42. Kf1 {[%emt 0:00:25]} Rf2+ {[%emt 0:00:00]} 43. Kg1 {[%emt 0:00:00]} Rfg2+ {[%emt 0:00:00]} 44. Kf1 {[%emt 0:00:00]} Rf2+ 1/2-1/2